fUSD/lending_fUSD_20250217
["ID","MTS","AMOUNT","RATE_DAILY","PERIOD"]
[353367324,1739801449204,-1358.46,0.00013698,2]
[353367326,1739801449214,-1358.46,0.00013698,2]
[353367328,1739801449225,-1358.46,0.00013698,2]
[353367330,1739801449235,-1358.46,0.00013698,2]
[353367332,1739801449246,-1358.46,0.00013698,2]
[353367335,1739801449258,-1358.46,0.00013698,2]
[353367337,1739801449268,-518.04,0.00013698,2]
[353367339,1739801449280,-1358.46,0.00013698,2]
[353367340,1739801449291,-1358.46,0.00013698,2]
[353367342,1739801449301,-1627.78,0.00013698,2]
[353367344,1739801449311,-1358.46,0.00013698,2]
[353367346,1739801449324,-920.09,0.00013698,2]
[353367348,1739801449335,-1358.46,0.00013698,2]
[353367350,1739801449345,-1358.46,0.00013698,2]
[353367352,1739801449355,-1358.46,0.00013698,2]
[353367354,1739801449366,-1358.46,0.00013698,2]
[353367356,1739801449376,-151.0,0.00013698,2]
[353367358,1739801449387,-1358.46,0.00013698,2]
[353367360,1739801449397,-151.0,0.00013698,2]
[353367362,1739801449408,-151.0,0.00013698,2]
[353367364,1739801449417,-151.0,0.00013698,2]
[353367366,1739801449427,-1358.46,0.00013698,2]
[353367368,1739801449437,-151.0,0.00013698,2]
[353367370,1739801449447,-1358.46,0.00013698,2]
[353367372,1739801449458,-500.0,0.00013698,2]
[353367374,1739801449469,-151.0,0.00013698,2]
[353367376,1739801449479,-1358.46,0.00013698,2]
[353367378,1739801449490,-759.19,0.00013698,2]
[353367380,1739801449501,-1358.46,0.00013698,2]
[353367382,1739801449512,-1358.46,0.00013698,2]
[353367384,1739801449522,-151.0,0.00013698,2]
[353367386,1739801449535,-1358.46,0.00013698,2]
[353367387,1739801449546,-500.0,0.00013698,2]
[353367390,1739801449557,-151.0,0.00013698,2]
[353367391,1739801449567,-1358.46,0.00013698,2]
[353367394,1739801449578,-611.0,0.00013698,2]
[353367395,1739801449588,-1358.58725129,0.00013698,2]
[353367397,1739801449598,-152.166835,0.00013698,2]
[353367399,1739801449607,-500.0,0.00013698,2]
[353367401,1739801449617,-1705.38,0.00013698,2]
[353367403,1739801449626,-500.0,0.00013698,2]
[353367405,1739801449637,-1554.86,0.00013698,2]
[353367407,1739801449647,-500.0,0.00013698,2]
[353367409,1739801449657,-1089.32,0.00013698,2]
[353367411,1739801449667,-1015.89,0.00013698,2]
[353367413,1739801449677,-500.0,0.00013698,2]
[353367415,1739801449687,-157.00997213,0.00013698,2]
[353367417,1739801449697,-160.4931881,0.00013698,2]
[353367419,1739801449707,-988.26,0.00013698,2]
[353367421,1739801449716,-500.0,0.00013698,2]
[353367423,1739801449727,-500.0,0.00013698,2]
[353367425,1739801449737,-500.0,0.00013698,2]
[353367427,1739801449746,-500.0,0.00013698,2]
[353367429,1739801449756,-500.0,0.00013698,2]
[353367431,1739801449766,-1661.51,0.00013698,2]
[353367433,1739801449775,-941.79,0.00013698,2]
[353367435,1739801449788,-1078.44,0.00013698,2]
[353367437,1739801449798,-500.0,0.00013698,2]
[353367439,1739801449812,-500.0,0.00013698,2]
[353367442,1739801449823,-4511.652976,0.00013698,2]
[353367444,1739801449834,-4511.652976,0.00013698,2]
[353367446,1739801449843,-4511.652976,0.00013698,2]
[353367447,1739801449853,-500.0,0.00013698,2]
[353367450,1739801449864,-4511.652976,0.00013698,2]
[353367451,1739801449873,-4511.652976,0.00013698,2]
[353367453,1739801449884,-500.0,0.00013698,2]
[353367456,1739801449897,-500.0,0.00013698,2]
[353367457,1739801449908,-1384.93,0.00013698,2]
[353367459,1739801449917,-4511.652976,0.00013698,2]
[353367461,1739801449927,-500.0,0.00013698,2]
[353367463,1739801449937,-1471.5,0.00013698,2]
[353367465,1739801449947,-4511.652976,0.00013698,2]
[353367468,1739801449957,-4511.652976,0.00013698,2]
[353367470,1739801449968,-4511.652976,0.00013698,2]
[353367471,1739801449978,-4511.652976,0.00013698,2]
[353367473,1739801449988,-4511.652976,0.00013698,2]
[353367475,1739801449997,-510.03916518,0.00013698,2]
[353367477,1739801450007,-4511.652976,0.00013698,2]
[353367480,1739801450017,-500.0,0.00013698,2]
[353367481,1739801450026,-4511.652978,0.00013698,2]
[353367484,1739801450038,-500.0,0.00013698,2]
[353367485,1739801450048,-500.0,0.00013698,2]
[353367487,1739801450059,-500.0,0.00013698,2]
[353367489,1739801450068,-500.0,0.00013698,2]
[353367491,1739801450078,-509.84415695,0.00013698,2]
[353367493,1739801450089,-500.0,0.00013698,2]
[353367495,1739801450099,-500.0,0.00013698,2]
[353367498,1739801450109,-500.0,0.00013698,2]
[353367499,1739801450118,-691.12,0.00013698,2]
[353367502,1739801450128,-1651.32,0.00013698,2]
[353367504,1739801450138,-998.65,0.00013698,2]
[353367506,1739801450149,-500.0,0.00013698,2]
[353367508,1739801450159,-1625.12,0.00013698,2]
[353367509,1739801450168,-500.0,0.00013698,2]
[353367511,1739801450178,-500.0,0.00013698,2]
[353367513,1739801450188,-1120.48,0.00013698,2]
[353367516,1739801450197,-500.0,0.00013698,2]
[353367518,1739801450207,-500.0,0.00013698,2]
[353367520,1739801450217,-500.0,0.00013698,2]
[353367522,1739801450227,-1145.67,0.00013698,2]
[353367524,1739801450237,-1045.54,0.00013698,2]
[353367525,1739801450248,-4000.0,0.00013698,2]
[353367527,1739801450257,-500.0,0.00013698,2]
[353367529,1739801450267,-500.0,0.00013698,2]
[353367531,1739801450276,-500.0,0.00013698,2]
[353367533,1739801450287,-500.0,0.00013698,2]
[353367535,1739801450297,-500.0,0.00013698,2]
[353367537,1739801450307,-500.0,0.00013698,2]
[353367539,1739801450317,-1041.19,0.00013698,2]
[353367541,1739801450327,-653.46,0.00013698,2]
[353367543,1739801450337,-1571.07,0.00013698,2]
[353367545,1739801450346,-500.0,0.00013698,2]
[353367547,1739801450356,-1254.62,0.00013698,2]
[353367549,1739801450365,-3247.67,0.00013698,2]
[353367551,1739801450374,-1917.02,0.00013698,2]
[353367553,1739801450383,-500.0,0.00013698,2]
[353367555,1739801450392,-500.0,0.00013698,2]
[353367557,1739801450401,-500.0,0.00013698,2]
[353367559,1739801450411,-1682.9,0.00013698,2]
[353367561,1739801450420,-500.0,0.00013698,2]
[353367563,1739801450430,-500.0,0.00013698,2]
[353367565,1739801450439,-1495.97,0.00013698,2]
[353367567,1739801450448,-3387.61,0.00013698,2]
[353367569,1739801450458,-500.0,0.00013698,2]
[353367571,1739801450467,-500.0,0.00013698,2]
[353367573,1739801450477,-520.56292999,0.00013698,2]
[353367575,1739801450487,-500.0,0.00013698,2]
[353367577,1739801450496,-570.11,0.00013698,2]
[353367579,1739801450506,-842.09,0.00013698,2]
[353367581,1739801450515,-1165.09,0.00013698,2]
[353367583,1739801450524,-1714.58,0.00013698,2]
[353367585,1739801450536,-418.71242714,0.00013698,2]
[353367587,1739801450545,-1795.35,0.00013698,2]
[353367589,1739801450555,-500.0,0.00013698,2]
[353367591,1739801450565,-628.27,0.00013698,2]
[353367593,1739801450574,-1544.97,0.00013698,2]
[353367595,1739801450583,-500.0,0.00013698,2]
[353367597,1739801450592,-790.0,0.00013698,2]
[353367599,1739801450602,-1177.99,0.00013698,2]
[353367601,1739801450613,-940.94,0.00013698,2]
[353367603,1739801450622,-500.0,0.00013698,2]
[353367605,1739801450631,-151.0,0.00013698,2]
[353367607,1739801450640,-151.0,0.00013698,2]
[353367609,1739801450650,-564.31,0.00013698,2]
[353367611,1739801450659,-613.82,0.00013698,2]
[353367613,1739801450669,-151.0,0.00013698,2]
[353367615,1739801450678,-500.0,0.00013698,2]
[353367617,1739801450687,-151.0,0.00013698,2]
[353367619,1739801450696,-2317.59,0.00013698,2]
[353367621,1739801450706,-500.0,0.00013698,2]
[353367623,1739801450715,-1517.67,0.00013698,2]
[353367625,1739801450725,-1922.5,0.00013698,2]
[353367627,1739801450734,-500.0,0.00013698,2]
[353367629,1739801450744,-500.0,0.00013698,2]
[353367631,1739801450755,-1385.84,0.00013698,2]
[353367633,1739801450764,-546.98,0.00013698,2]
[353367635,1739801450773,-531.03,0.00013698,2]
[353367637,1739801450785,-1618.7,0.00013698,2]
[353367639,1739801450794,-500.0,0.00013698,2]
[353367641,1739801450804,-500.0,0.00013698,2]
[353367643,1739801450814,-1661.49,0.00013698,2]
[353367645,1739801450824,-1003.49,0.00013698,2]
[353367647,1739801450833,-724.51,0.00013698,2]
[353367649,1739801450843,-3314.57,0.00013698,2]
[353367651,1739801450852,-151.0,0.00013698,2]
[353367653,1739801450862,-500.0,0.00013698,2]
[353367655,1739801450871,-151.0,0.00013698,2]
[353367657,1739801450880,-1116.559896,0.00013698,2]
[353367659,1739801450890,-151.0,0.00013698,2]
[353367661,1739801450901,-1116.559896,0.00013698,2]
[353367663,1739801450913,-2160.75,0.00013698,2]
[353367665,1739801450923,-151.0,0.00013698,2]
[353367667,1739801450932,-1116.559896,0.00013698,2]
[353367669,1739801450941,-151.0,0.00013698,2]
[353367671,1739801450951,-1116.559896,0.00013698,2]
[353367673,1739801450961,-1676.7,0.00013698,2]
[353367674,1739801450971,-1116.559896,0.00013698,2]
[353367675,1739801450981,-500.0,0.00013698,2]
[353367676,1739801450992,-1116.559896,0.00013698,2]
[353367677,1739801451001,-1116.559896,0.00013698,2]
[353367678,1739801451011,-1116.559896,0.00013698,2]
[353367679,1739801451021,-151.0,0.00013698,2]
[353367680,1739801451033,-884.56,0.00013698,2]
[353367681,1739801451043,-151.0,0.00013698,2]
[353367682,1739801451053,-1116.559896,0.00013698,2]
[353367684,1739801451062,-151.0,0.00013698,2]
[353367686,1739801451072,-151.0,0.00013698,2]
[353367688,1739801451082,-151.0,0.00013698,2]
[353367690,1739801451091,-151.0,0.00013698,2]
[353367692,1739801451100,-151.0,0.00013698,2]
[353367694,1739801451110,-151.0,0.00013698,2]
[353367696,1739801451119,-151.0,0.00013698,2]
[353367698,1739801451128,-1116.559896,0.00013698,2]
[353367700,1739801451139,-151.0,0.00013698,2]
[353367702,1739801451149,-151.0,0.00013698,2]
[353367704,1739801451158,-1116.559896,0.00013698,2]
[353367706,1739801451167,-151.0,0.00013698,2]
[353367708,1739801451176,-151.0,0.00013698,2]
[353367710,1739801451185,-151.0,0.00013698,2]
[353367712,1739801451195,-1116.559896,0.00013698,2]
[353367714,1739801451204,-2179.93,0.00013698,2]
[353367716,1739801451213,-500.0,0.00013698,2]
[353367718,1739801451223,-151.0,0.00013698,2]
[353367720,1739801451232,-151.0,0.00013698,2]
[353367722,1739801451242,-151.0,0.00013698,2]
[353367724,1739801451252,-1116.559896,0.00013698,2]
[353367726,1739801451262,-151.0,0.00013698,2]
[353367728,1739801451271,-151.0,0.00013698,2]
[353367730,1739801451282,-1116.559896,0.00013698,2]
[353367732,1739801451292,-291.931597,0.00013698,2]
[353367734,1739801451301,-564.47536902,0.00013698,2]
[353367736,1739801451311,-500.0,0.00013698,2]
[353367738,1739801451321,-151.0,0.00013698,2]
[353367740,1739801451330,-1116.559896,0.00013698,2]
[353367742,1739801451339,-500.0,0.00013698,2]
[353367744,1739801451349,-1116.559906,0.00013698,2]
[353367746,1739801451359,-2493.84,0.00013698,2]
[353367748,1739801451368,-1692.41,0.00013698,2]
[353367750,1739801451377,-151.0,0.00013698,2]
[353367752,1739801451388,-660.98,0.00013698,2]
[353367754,1739801451397,-151.0,0.00013698,2]
[353367756,1739801451407,-500.0,0.00013698,2]
[353367758,1739801451417,-500.0,0.00013698,2]
[353367760,1739801451427,-151.0,0.00013698,2]
[353367762,1739801451437,-231.173997,0.00013698,2]
[353367764,1739801451446,-500.0,0.00013698,2]
[353367766,1739801451456,-500.0,0.00013698,2]
[353367767,1739801451465,-805.83,0.00013698,2]
[353367769,1739801451475,-500.0,0.00013698,2]
[353367771,1739801451484,-1046.36,0.00013698,2]
[353367773,1739801451494,-500.0,0.00013698,2]
[353367775,1739801451503,-500.0,0.00013698,2]
[353367777,1739801451513,-500.0,0.00013698,2]
[353367779,1739801451522,-500.0,0.00013698,2]
[353367781,1739801451533,-500.0,0.00013698,2]
[353367783,1739801451543,-2179.25,0.00013698,2]
[353367785,1739801451552,-1079.01,0.00013698,2]
[353367787,1739801451561,-784.27,0.00013698,2]
[353367789,1739801451570,-1079.01,0.00013698,2]
[353367791,1739801451580,-1091.69,0.00013698,2]
[353367793,1739801451590,-1079.01,0.00013698,2]
[353367795,1739801451599,-500.0,0.00013698,2]
[353367797,1739801451608,-500.0,0.00013698,2]
[353367799,1739801451618,-1079.01,0.00013698,2]
[353367801,1739801451627,-1079.01,0.00013698,2]
[353367803,1739801451637,-1079.01,0.00013698,2]
[353367805,1739801451646,-1079.01,0.00013698,2]
[353367807,1739801451656,-1079.01,0.00013698,2]
[353367809,1739801451667,-1079.01,0.00013698,2]
[353367811,1739801451680,-500.0,0.00013698,2]
[353367813,1739801451692,-544.98,0.00013698,2]
[353367815,1739801451702,-602.77,0.00013698,2]
[353367817,1739801451711,-500.0,0.00013698,2]
[353367819,1739801451721,-1829.18,0.00013698,2]
[353367822,1739801451731,-1196.54,0.00013698,2]
[353367824,1739801451741,-1986.17,0.00013698,2]
[353367826,1739801451751,-500.0,0.00013698,2]
[353367827,1739801451761,-2285.63,0.00013698,2]
[353367830,1739801451771,-2436.71,0.00013698,2]
[353367832,1739801451785,-500.0,0.00013698,2]
[353367834,1739801451795,-500.0,0.00013698,2]
[353367836,1739801451805,-725.18,0.00013698,2]
[353367838,1739801451815,-916.85,0.00013698,2]
[353367840,1739801451824,-1529.57,0.00013698,2]
[353367842,1739801451834,-916.85,0.00013698,2]
[353367844,1739801451844,-916.85,0.00013698,2]
[353367846,1739801451854,-916.85,0.00013698,2]
[353367848,1739801451864,-500.0,0.00013698,2]
[353367850,1739801451874,-151.308706,0.00013698,2]
[353367852,1739801451885,-151.308706,0.00013698,2]
[353367854,1739801451896,-2059.28,0.00013698,2]
[353367856,1739801451908,-151.308706,0.00013698,2]
[353367858,1739801451918,-151.308706,0.00013698,2]
[353367860,1739801451928,-500.0,0.00013698,2]
[353367862,1739801451937,-151.308706,0.00013698,2]
[353367864,1739801451947,-738.76,0.00013698,2]
[353367866,1739801451957,-2080.47,0.00013698,2]
[353367868,1739801451967,-151.308706,0.00013698,2]
[353367870,1739801451977,-190.26,0.00013698,2]
[353367872,1739801451988,-500.0,0.00013698,2]
[353367874,1739801451998,-151.308706,0.00013698,2]
[353367876,1739801452007,-3621.76,0.00013698,2]
[353367878,1739801452017,-151.308706,0.00013698,2]
[353367880,1739801452028,-500.0,0.00013698,2]
[353367882,1739801452039,-151.0,0.00013698,2]
[353367884,1739801452048,-190.26,0.00013698,2]
[353367886,1739801452058,-1554.87,0.00013698,2]
[353367888,1739801452067,-151.0,0.00013698,2]
[353367907,1739801452235,-190.26,0.00013698,2]
[353367909,1739801452245,-151.308706,0.00013698,2]
[353367911,1739801452254,-151.0,0.00013698,2]
[353367913,1739801452263,-190.26,0.00013698,2]
[353367915,1739801452273,-151.308706,0.00013698,2]
[353367917,1739801452284,-151.0,0.00013698,2]
[353367919,1739801452294,-151.308706,0.00013698,2]
[353367921,1739801452303,-190.26,0.00013698,2]
[353367923,1739801452312,-151.0,0.00013698,2]
[353367925,1739801452322,-151.0,0.00013698,2]
[353367927,1739801452332,-500.0,0.00013698,2]
[353367929,1739801452342,-151.308706,0.00013698,2]
[353367931,1739801452352,-190.26,0.00013698,2]
[353367933,1739801452362,-151.0,0.00013698,2]
[353367935,1739801452371,-151.0,0.00013698,2]
[353367937,1739801452380,-151.308706,0.00013698,2]
[353367939,1739801452390,-190.26,0.00013698,2]
[353367941,1739801452399,-151.0,0.00013698,2]
[353367943,1739801452408,-151.308706,0.00013698,2]
[353367945,1739801452419,-190.26,0.00013698,2]
[353367947,1739801452428,-288.155568,0.00013698,2]
[353367949,1739801452437,-151.0,0.00013698,2]
[353367951,1739801452446,-151.308706,0.00013698,2]
[353367953,1739801452455,-500.0,0.00013698,2]
[353367955,1739801452464,-151.308716,0.00013698,2]
[353367957,1739801452474,-151.0,0.00013698,2]
[353367959,1739801452483,-190.26,0.00013698,2]
[353367961,1739801452492,-151.975412,0.00013698,2]
[353367963,1739801452502,-190.26,0.00013698,2]
[353367965,1739801452511,-190.26,0.00013698,2]
[353367967,1739801452520,-190.26,0.00013698,2]
[353367969,1739801452532,-538.32,0.00013698,2]
[353367971,1739801452541,-190.26,0.00013698,2]
[353367973,1739801452550,-500.0,0.00013698,2]
[353367975,1739801452560,-190.26,0.00013698,2]
[353367977,1739801452569,-500.0,0.00013698,2]
[353367979,1739801452578,-3088.56,0.00013698,2]
[353367981,1739801452588,-190.26,0.00013698,2]
[353367983,1739801452597,-190.26,0.00013698,2]
[353367985,1739801452606,-994.95,0.00013698,2]
[353367987,1739801452615,-2511.48,0.00013698,2]
[353367989,1739801452624,-151.0,0.00013698,2]
[353367991,1739801452633,-151.0,0.00013698,2]
[353367993,1739801452643,-229.121529,0.00013698,2]
[353367995,1739801452652,-500.0,0.00013698,2]
[353367997,1739801452661,-500.0,0.00013698,2]
[353367999,1739801452670,-1792.75,0.00013698,2]
[353368001,1739801452679,-500.0,0.00013698,2]
[353368003,1739801452688,-2492.77,0.00013698,2]
[353368005,1739801452698,-1922.39,0.00013698,2]
[353368007,1739801452707,-500.0,0.00013698,2]
[353368009,1739801452716,-716.09,0.00013698,2]
[353368011,1739801452726,-2447.91,0.00013698,2]
[353368013,1739801452735,-500.0,0.00013698,2]
[353368015,1739801452745,-1811.82,0.00013698,2]
[353368017,1739801452754,-1621.19,0.00013698,2]
[353368019,1739801452764,-2234.88,0.00013698,2]
[353368021,1739801452773,-558.06,0.00013698,2]
[353368023,1739801452784,-500.77,0.00013698,2]
[353368025,1739801452793,-2154.46,0.00013698,2]
[353368027,1739801452802,-714.38,0.00013698,2]
[353368029,1739801452811,-3801.26,0.00013698,2]
[353368031,1739801452821,-525.01138611,0.00013698,2]
[353368033,1739801452830,-2866.82,0.00013698,2]
[353368034,1739801452839,-500.0,0.00013698,2]
[353368037,1739801452848,-542.39,0.00013698,2]
[353368039,1739801452858,-4526.39,0.00013698,2]
[353368041,1739801452867,-1995.28,0.00013698,2]
[353368043,1739801452876,-2877.66,0.00013698,2]
[353368045,1739801452887,-1200.0,0.00013698,2]
[353368047,1739801452898,-1428.61,0.00013698,2]
[353368049,1739801452908,-2559.61,0.00013698,2]
[353368051,1739801452917,-3065.09,0.00013698,2]
[353368053,1739801452927,-501.091095,0.00013698,2]
[353368055,1739801452937,-7282.2,0.00013698,2]
[353368057,1739801452947,-152.157644,0.00013698,2]
[353368059,1739801452956,-193.16448,0.00013698,2]
[353368061,1739801452968,-193.16448,0.00013698,2]
[353368063,1739801452978,-193.16448,0.00013698,2]
[353368065,1739801452987,-500.0,0.00013698,2]
[353368067,1739801452997,-193.16448,0.00013698,2]
[353368069,1739801453006,-193.16448,0.00013698,2]
[353368071,1739801453015,-193.16448,0.00013698,2]
[353368073,1739801453025,-1230.8,0.00013698,2]
[353368075,1739801453036,-193.16448,0.00013698,2]
[353368077,1739801453045,-193.16448,0.00013698,2]
[353368078,1739801453054,-500.0,0.00013698,2]
[353368080,1739801453064,-1753.24,0.00013698,2]
[353368082,1739801453074,-193.16448,0.00013698,2]
[353368084,1739801453083,-193.16448,0.00013698,2]
[353368086,1739801453093,-193.16448,0.00013698,2]
[353368088,1739801453102,-2564.01,0.00013698,2]
[353368091,1739801453112,-193.16448,0.00013698,2]
[353368092,1739801453121,-2402.32,0.00013698,2]
[353368093,1739801453130,-193.16448,0.00013698,2]
[353368094,1739801453139,-2640.05,0.00013698,2]
[353368095,1739801453148,-858.88,0.00013698,2]
[353368096,1739801453157,-193.16448,0.00013698,2]
[353368097,1739801453167,-193.16448,0.00013698,2]
[353368098,1739801453176,-2789.65,0.00013698,2]
[353368099,1739801453185,-193.164481,0.00013698,2]
[353368100,1739801453195,-1078.97,0.00013698,2]
[353368101,1739801453204,-500.0,0.00013698,2]
[353368103,1739801453214,-500.0,0.00013698,2]
[353368105,1739801453223,-500.0,0.00013698,2]
[353368107,1739801453232,-9600.35,0.00013698,2]
[353368109,1739801453242,-500.0,0.00013698,2]
[353368111,1739801453251,-1718.98,0.00013698,2]
[353368113,1739801453260,-3198.48,0.00013698,2]
[353368115,1739801453270,-3079.3,0.00013698,2]
[353368117,1739801453280,-151.0,0.00013698,2]
[353368119,1739801453291,-500.0,0.00013698,2]
[353368121,1739801453301,-151.0,0.00013698,2]
[353368123,1739801453310,-2892.99,0.00013698,2]
[353368125,1739801453319,-1447.04,0.00013698,2]
[353368127,1739801453328,-2486.67,0.00013698,2]
[353368129,1739801453338,-500.0,0.00013698,2]
[353368131,1739801453347,-1855.18,0.00013698,2]
[353368133,1739801453356,-500.0,0.00013698,2]
[353368135,1739801453365,-1637.22,0.00013698,2]
[353368137,1739801453375,-500.0,0.00013698,2]
[353368139,1739801453384,-500.0,0.00013698,2]
[353368141,1739801453394,-500.0,0.00013698,2]
[353368143,1739801453403,-7110.24,0.00013698,2]
[353368145,1739801453412,-500.0,0.00013698,2]
[353368147,1739801453422,-693.87,0.00013698,2]
[353368149,1739801453431,-1201.92,0.00013698,2]
[353368151,1739801453441,-3365.03,0.00013698,2]
[353368153,1739801453451,-2154.73,0.00013698,2]
[353368155,1739801453460,-618.8,0.00013698,2]
[353368157,1739801453471,-2320.84,0.00013698,2]
[353368159,1739801453480,-500.0,0.00013698,2]
[353368161,1739801453489,-500.0,0.00013698,2]
[353368163,1739801453499,-500.0,0.00013698,2]
[353368165,1739801453508,-500.0,0.00013698,2]
[353368167,1739801453518,-3780.63,0.00013698,2]
[353368169,1739801453528,-500.0,0.00013698,2]
[353368171,1739801453539,-500.0,0.00013698,2]
[353368173,1739801453548,-3137.25,0.00013698,2]
[353368175,1739801453558,-2557.5,0.00013698,2]
[353368177,1739801453568,-500.0,0.00013698,2]
[353368179,1739801453577,-500.0,0.00013698,2]
[353368181,1739801453586,-677.96,0.00013698,2]
[353368183,1739801453596,-274.58042911,0.00013698,2]
[353368185,1739801453606,-895.61,0.00013698,2]
[353368187,1739801453615,-1059.73,0.00013698,2]
[353368189,1739801453625,-500.0,0.00013698,2]
[353368191,1739801453634,-1771.85,0.00013698,2]
[353368193,1739801453643,-540.78549064,0.00013698,2]
[353368195,1739801453652,-1468.5,0.00013698,2]
[353368197,1739801453662,-500.0,0.00013698,2]
[353368199,1739801453672,-221.46292182,0.00013698,2]
[353368201,1739801453682,-500.0,0.00013698,2]
[353368203,1739801453693,-749.05,0.00013698,2]
[353368205,1739801453702,-500.0,0.00013698,2]
[353368207,1739801453712,-664.12,0.00013698,2]
[353368209,1739801453722,-500.0,0.00013698,2]
[353368211,1739801453731,-1520.33,0.00013698,2]
[353368213,1739801453741,-3852.61,0.00013698,2]
[353368215,1739801453750,-500.0,0.00013698,2]
[353368217,1739801453760,-2769.08,0.00013698,2]
[353368219,1739801453769,-500.0,0.00013698,2]
[353368221,1739801453779,-500.0,0.00013698,2]
[353368223,1739801453790,-783.84,0.00013698,2]
[353368225,1739801453800,-504.92246659,0.00013698,2]
[353368227,1739801453810,-151.0,0.00013698,2]
[353368229,1739801453820,-578.59,0.00013698,2]
[353368231,1739801453830,-151.0,0.00013698,2]
[353368233,1739801453840,-2952.47,0.00013698,2]
[353368235,1739801453849,-151.0,0.00013698,2]
[353368238,1739801453860,-151.0,0.00013698,2]
[353368240,1739801453870,-500.0,0.00013698,2]
[353368242,1739801453879,-151.0,0.00013698,2]
[353368244,1739801453891,-151.0,0.00013698,2]
[353368246,1739801453902,-500.0,0.00013698,2]
[353368248,1739801453912,-151.0,0.00013698,2]
[353368250,1739801453921,-151.0,0.00013698,2]
[353368251,1739801453931,-500.0,0.00013698,2]
[353368253,1739801453940,-2064.67,0.00013698,2]
[353368255,1739801453950,-830.43,0.00013698,2]
[353368258,1739801453960,-2439.69,0.00013698,2]
[353368260,1739801453969,-2585.95,0.00013698,2]
[353368262,1739801453979,-500.0,0.00013698,2]
[353368264,1739801453988,-1538.55,0.00013698,2]
[353368266,1739801453998,-1229.24,0.00013698,2]
[353368268,1739801454007,-3960.62,0.00013698,2]
[353368270,1739801454016,-796.95,0.00013698,2]
[353368272,1739801454025,-571.93,0.00013698,2]
[353368274,1739801454036,-3733.58,0.00013698,2]
[353368276,1739801454045,-500.0,0.00013698,2]
[353368278,1739801454054,-2136.58,0.00013698,2]
[353368280,1739801454063,-1657.46,0.00013698,2]
[353368282,1739801454073,-1102.81,0.00013698,2]
[353368284,1739801454082,-500.0,0.00013698,2]
[353368286,1739801454091,-2012.57,0.00013698,2]
[353368288,1739801454102,-500.0,0.00013698,2]
[353368290,1739801454111,-2000.56,0.00013698,2]
[353368292,1739801454122,-1032.25,0.00013698,2]
[353368294,1739801454132,-151.0,0.00013698,2]
[353368296,1739801454142,-151.0,0.00013698,2]
[353368298,1739801454151,-151.0,0.00013698,2]
[353368300,1739801454161,-2463.4,0.00013698,2]
[353368302,1739801454170,-151.552059,0.00013698,2]
[353368304,1739801454179,-503.00059111,0.00013698,2]
[353368306,1739801454188,-500.0,0.00013698,2]
[353368308,1739801454198,-2514.53,0.00013698,2]
[353368310,1739801454207,-597.23,0.00013698,2]
[353368312,1739801454217,-500.0,0.00013698,2]
[353368314,1739801454226,-2283.35,0.00013698,2]
[353368316,1739801454236,-500.0,0.00013698,2]
[353368318,1739801454246,-1150.36,0.00013698,2]
[353368320,1739801454255,-500.0,0.00013698,2]